[Event "*** Titled Tuesday Blitz"]
[Site "Chess.com"]
[Date "2020.11.24"]
[Round "2"]
[White "AvitalBor"]
[Black "JozefKneht"]
[Result "1-0"]
[WhiteElo "2666"]
[BlackElo "2360"]
[TimeControl "180+1"]
[EndTime "10:29:12 PST"]
[Termination "AvitalBor won by resignation"]

1. e4 {[%clk 0:03:00.9]} 1... c5 {[%clk 0:02:58.9]} 2. c3 {[%clk 0:02:59.1]}
2... Nf6 {[%clk 0:02:58.4]} 3. e5 {[%clk 0:02:58.9]} 3... Nd5 {[%clk 0:02:58.4]}
4. d4 {[%clk 0:02:59.8]} 4... cxd4 {[%clk 0:02:58.6]} 5. cxd4 {[%clk 0:03:00.7]}
5... d6 {[%clk 0:02:58.3]} 6. Nf3 {[%clk 0:02:59.9]} 6... Nc6 {[%clk 0:02:56.8]}
7. Bc4 {[%clk 0:03:00.1]} 7... Nb6 {[%clk 0:02:56.4]} 8. Bb5 {[%clk 0:03:00.5]}
8... dxe5 {[%clk 0:02:55.1]} 9. Nxe5 {[%clk 0:03:01.4]} 9... Bd7 {[%clk
0:02:55.2]} 10. Nxd7 {[%clk 0:03:01.9]} 10... Qxd7 {[%clk 0:02:55]} 11. Nc3
{[%clk 0:03:02.8]} 11... e6 {[%clk 0:02:52.6]} 12. O-O {[%clk 0:03:03.1]} 12...
Rd8 {[%clk 0:02:39.6]} 13. Qg4 {[%clk 0:03:01.2]} 13... a6 {[%clk 0:02:34.6]}
14. Bxc6 {[%clk 0:02:56.7]} 14... Qxc6 {[%clk 0:02:34.5]} 15. Bg5 {[%clk
0:02:51.8]} 15... Rd7 {[%clk 0:02:34.6]} 16. Rac1 {[%clk 0:02:50.6]} 16... Qc4
{[%clk 0:01:53.8]} 17. Ne4 {[%clk 0:02:41.7]} 17... Qxa2 {[%clk 0:01:49.6]} 18.
Qf4 {[%clk 0:02:25.4]} 18... Be7 {[%clk 0:01:42]} 19. Bxe7 {[%clk 0:02:21]}
19... Kxe7 {[%clk 0:01:37.7]} 20. Qg5+ {[%clk 0:02:21]} 20... Kf8 {[%clk
0:01:36.4]} 21. Qc5+ {[%clk 0:02:20.7]} 1-0

[Event "*** Titled Tuesday Blitz"]
[Site "Chess.com"]
[Date "2020.11.24"]
[Round "2"]
[White "LittleMyMoomin"]
[Black "kasparicy"]
[Result "0-1"]
[WhiteElo "1849"]
[BlackElo "2364"]
[TimeControl "180+1"]
[EndTime "10:29:14 PST"]
[Termination "kasparicy won by resignation"]

1. e4 {[%clk 0:02:59.9]} 1... c5 {[%clk 0:02:53.1]} 2. Nf3 {[%clk 0:02:59.1]}
2... d6 {[%clk 0:02:50]} 3. d4 {[%clk 0:02:58.7]} 3... cxd4 {[%clk 0:02:50.9]}
4. Nxd4 {[%clk 0:02:59.3]} 4... Nf6 {[%clk 0:02:51.8]} 5. Nc3 {[%clk 0:02:58.8]}
5... a6 {[%clk 0:02:50.5]} 6. h3 {[%clk 0:02:54.1]} 6... e6 {[%clk 0:02:49.1]}
7. Bc4 {[%clk 0:02:47.5]} 7... Nbd7 {[%clk 0:02:48]} 8. O-O {[%clk 0:02:34.7]}
8... b5 {[%clk 0:02:47.6]} 9. Bb3 {[%clk 0:02:33.3]} 9... Nc5 {[%clk 0:02:46.7]}
10. Re1 {[%clk 0:02:29.5]} 10... Bb7 {[%clk 0:02:46]} 11. Nf5 {[%clk 0:01:56.9]}
11... exf5 {[%clk 0:02:39.6]} 12. exf5+ {[%clk 0:01:56.6]} 12... Be7 {[%clk
0:02:40.5]} 13. Bxf7+ {[%clk 0:01:49.5]} 13... Kxf7 {[%clk 0:02:40.1]} 14. Bg5
{[%clk 0:01:35.6]} 14... Re8 {[%clk 0:02:39.2]} 15. Bxf6 {[%clk 0:01:33.8]}
15... Bxf6 {[%clk 0:02:38.4]} 16. Qh5+ {[%clk 0:01:34]} 16... Kg8 {[%clk
0:02:38.9]} 0-1

[Event "*** Titled Tuesday Blitz"]
[Site "Chess.com"]
[Date "2020.11.24"]
[Round "2"]
[White "MarkoPe"]
[Black "2346PL"]
[Result "0-1"]
[WhiteElo "2191"]
[BlackElo "2435"]
[TimeControl "180+1"]
[EndTime "10:29:34 PST"]
[Termination "2346PL won by checkmate"]

1. e4 {[%clk 0:03:00.8]} 1... c5 {[%clk 0:02:59.6]} 2. Nf3 {[%clk 0:03:00]} 2...
Nf6 {[%clk 0:03:00.1]} 3. e5 {[%clk 0:02:59.8]} 3... Nd5 {[%clk 0:03:00.3]} 4.
Nc3 {[%clk 0:03:00.5]} 4... e6 {[%clk 0:03:00.4]} 5. Nxd5 {[%clk 0:02:58.8]}
5... exd5 {[%clk 0:03:01.3]} 6. d4 {[%clk 0:02:57.1]} 6... Qb6 {[%clk
0:03:01.8]} 7. c3 {[%clk 0:02:55.1]} 7... cxd4 {[%clk 0:03:01]} 8. cxd4 {[%clk
0:02:55]} 8... Nc6 {[%clk 0:03:01.6]} 9. Be2 {[%clk 0:02:41.6]} 9... Bb4+ {[%clk
0:02:59.5]} 10. Kf1 {[%clk 0:02:35.4]} 10... Be7 {[%clk 0:02:57.7]} 11. g3
{[%clk 0:02:33.7]} 11... d6 {[%clk 0:02:58]} 12. Kg2 {[%clk 0:02:31]} 12... dxe5
{[%clk 0:02:50.7]} 13. dxe5 {[%clk 0:02:31.9]} 13... Be6 {[%clk 0:02:50.5]} 14.
Be3 {[%clk 0:02:22.8]} 14... Qc7 {[%clk 0:02:50.1]} 15. Rc1 {[%clk 0:02:14.2]}
15... O-O {[%clk 0:02:49.3]} 16. Qa4 {[%clk 0:01:56.2]} 16... Qd7 {[%clk
0:02:46.5]} 17. Bb5 {[%clk 0:01:48.9]} 17... Rfc8 {[%clk 0:02:44.2]} 18. Nd4
{[%clk 0:01:45.5]} 18... Bh3+ {[%clk 0:02:38.5]} 19. Kg1 {[%clk 0:01:42.2]}
19... Nxd4 {[%clk 0:02:38.5]} 20. Bxd7 {[%clk 0:00:55.6]} 20... Nf3# {[%clk
0:02:37.3]} 0-1

[Event "*** Titled Tuesday Blitz"]
[Site "Chess.com"]
[Date "2020.11.24"]
[Round "2"]
[White "kingofthenil"]
[Black "PowerThinking2650"]
[Result "1-0"]
[WhiteElo "2759"]
[BlackElo "2346"]
[TimeControl "180+1"]
[EndTime "10:29:41 PST"]
[Termination "kingofthenil won by resignation"]

1. e4 {[%clk 0:03:00.6]} 1... e5 {[%clk 0:02:59]} 2. Nf3 {[%clk 0:03:00.8]} 2...
Nc6 {[%clk 0:02:58.4]} 3. Bc4 {[%clk 0:03:00.9]} 3... Nf6 {[%clk 0:02:57.8]} 4.
d3 {[%clk 0:03:01.8]} 4... h6 {[%clk 0:02:57.3]} 5. c3 {[%clk 0:03:00.5]} 5...
d6 {[%clk 0:02:57.1]} 6. Bb3 {[%clk 0:03:01.4]} 6... g6 {[%clk 0:02:57.2]} 7.
Nbd2 {[%clk 0:03:02.3]} 7... Bg7 {[%clk 0:02:57.4]} 8. h4 {[%clk 0:03:02.6]}
8... Bg4 {[%clk 0:02:51.8]} 9. Nf1 {[%clk 0:03:00.2]} 9... d5 {[%clk 0:02:42.4]}
10. Qe2 {[%clk 0:03:00.2]} 10... dxe4 {[%clk 0:02:36.2]} 11. dxe4 {[%clk
0:03:01.1]} 11... O-O {[%clk 0:02:30.2]} 12. Ne3 {[%clk 0:02:59.7]} 12... Bh5
{[%clk 0:02:02.5]} 13. Nd5 {[%clk 0:02:58.8]} 13... Na5 {[%clk 0:01:53.1]} 14.
Nxf6+ {[%clk 0:02:51.1]} 14... Qxf6 {[%clk 0:01:49.9]} 15. Bc2 {[%clk 0:02:52]}
15... Rad8 {[%clk 0:01:34.4]} 16. Be3 {[%clk 0:02:52]} 16... Rd7 {[%clk
0:01:07.1]} 17. Rf1 {[%clk 0:02:39.2]} 17... Rfd8 {[%clk 0:00:57.5]} 18. b4
{[%clk 0:02:38.1]} 18... Nc6 {[%clk 0:00:56.6]} 19. Rg1 {[%clk 0:02:37.9]} 19...
a6 {[%clk 0:00:54.1]} 20. g4 {[%clk 0:02:37.3]} 1-0

[Event "*** Titled Tuesday Blitz"]
[Site "Chess.com"]
[Date "2020.11.24"]
[Round "2"]
[White "ferdipy"]
[Black "THE_PLAYER6"]
[Result "0-1"]
[WhiteElo "2139"]
[BlackElo "2418"]
[TimeControl "180+1"]
[EndTime "10:29:43 PST"]
[Termination "THE_PLAYER6 won by resignation"]

1. e4 {[%clk 0:03:00.9]} 1... e5 {[%clk 0:02:58.7]} 2. Nf3 {[%clk 0:03:00.8]}
2... Nc6 {[%clk 0:02:58.6]} 3. Bc4 {[%clk 0:03:01.3]} 3... Bc5 {[%clk
0:02:57.7]} 4. b4 {[%clk 0:03:00.9]} 4... Bxb4 {[%clk 0:02:56.8]} 5. c3 {[%clk
0:03:01.5]} 5... Bc5 {[%clk 0:02:57]} 6. d4 {[%clk 0:03:02.2]} 6... exd4 {[%clk
0:02:56.4]} 7. O-O {[%clk 0:03:01.9]} 7... Nf6 {[%clk 0:02:55.8]} 8. e5 {[%clk
0:03:01.5]} 8... d5 {[%clk 0:02:55.6]} 9. Bb5 {[%clk 0:02:53.6]} 9... Nd7 {[%clk
0:02:51.9]} 10. cxd4 {[%clk 0:02:53.6]} 10... Bb6 {[%clk 0:02:51]} 11. Ba3
{[%clk 0:02:52.8]} 11... a6 {[%clk 0:02:44.4]} 12. Ba4 {[%clk 0:02:51.7]} 12...
Ba7 {[%clk 0:02:42.9]} 13. Bb3 {[%clk 0:02:47.4]} 13... Nb6 {[%clk 0:02:41.8]}
14. Nc3 {[%clk 0:02:46.4]} 14... Be6 {[%clk 0:02:42.2]} 15. Qd2 {[%clk
0:02:37.7]} 15... Qd7 {[%clk 0:02:42.6]} 16. Rac1 {[%clk 0:02:33.3]} 16... O-O-O
{[%clk 0:02:42.5]} 17. Na4 {[%clk 0:02:32.9]} 17... Nxa4 {[%clk 0:02:39.5]} 18.
Bxa4 {[%clk 0:02:33.8]} 18... b5 {[%clk 0:02:40]} 19. Bb3 {[%clk 0:02:32.1]}
19... Kb7 {[%clk 0:02:39.3]} 20. Rc2 {[%clk 0:02:28.2]} 20... Bg4 {[%clk
0:02:35.3]} 21. Rfc1 {[%clk 0:02:24.4]} 21... Bxf3 {[%clk 0:02:34.5]} 22. Rxc6
{[%clk 0:02:19.1]} 22... Qg4 {[%clk 0:02:32.9]} 23. Rxc7+ {[%clk 0:02:17]} 23...
Ka8 {[%clk 0:02:32.7]} 24. Bxd5+ {[%clk 0:01:33.3]} 24... Rxd5 {[%clk
0:02:28.2]} 0-1

[Event "*** Titled Tuesday Blitz"]
[Site "Chess.com"]
[Date "2020.11.24"]
[Round "2"]
[White "Tactictic"]
[Black "kinga2008"]
[Result "1-0"]
[WhiteElo "2433"]
[BlackElo "2186"]
[TimeControl "180+1"]
[EndTime "10:29:45 PST"]
[Termination "Tactictic won by resignation"]

1. e4 {[%clk 0:03:00.9]} 1... c5 {[%clk 0:02:58.8]} 2. Nf3 {[%clk 0:02:58.6]}
2... Nc6 {[%clk 0:02:54]} 3. d4 {[%clk 0:02:58.6]} 3... cxd4 {[%clk 0:02:51.9]}
4. Nxd4 {[%clk 0:02:59.5]} 4... e5 {[%clk 0:02:48.7]} 5. Nb5 {[%clk 0:02:59]}
5... a6 {[%clk 0:02:44.5]} 6. Nd6+ {[%clk 0:02:49.5]} 6... Bxd6 {[%clk
0:02:41.8]} 7. Qxd6 {[%clk 0:02:50.4]} 7... Qf6 {[%clk 0:02:42.4]} 8. Qxf6
{[%clk 0:02:48]} 8... Nxf6 {[%clk 0:02:36.6]} 9. Nc3 {[%clk 0:02:44.4]} 9... O-O
{[%clk 0:02:31.6]} 10. Bg5 {[%clk 0:02:43.2]} 10... Nb4 {[%clk 0:02:25.9]} 11.
O-O-O {[%clk 0:02:37]} 11... Ng4 {[%clk 0:02:19.2]} 12. Be7 {[%clk 0:02:16.1]}
12... Nc6 {[%clk 0:02:04.1]} 13. Bxf8 {[%clk 0:02:14.3]} 13... Nxf2 {[%clk
0:02:01.6]} 14. Bc5 {[%clk 0:02:07.6]} 14... Nxh1 {[%clk 0:01:52.7]} 15. Bd3
{[%clk 0:02:04.5]} 15... d6 {[%clk 0:01:52.2]} 16. Bb6 {[%clk 0:02:02.1]} 16...
Ng3 {[%clk 0:01:46.4]} 17. hxg3 {[%clk 0:02:01.3]} 17... Be6 {[%clk 0:01:45.5]}
18. Nd5 {[%clk 0:02:00]} 18... Bxd5 {[%clk 0:01:44.7]} 19. exd5 {[%clk
0:02:00.9]} 19... Nb4 {[%clk 0:01:45.4]} 20. Bc4 {[%clk 0:01:59.6]} 20... Rc8
{[%clk 0:01:43.7]} 21. Bb3 {[%clk 0:01:58.9]} 21... f5 {[%clk 0:01:35.5]} 22. a3
{[%clk 0:01:56.2]} 1-0

[Event "*** Titled Tuesday Blitz"]
[Site "Chess.com"]
[Date "2020.11.24"]
[Round "2"]
[White "Susal_De_Silva"]
[Black "tan275"]
[Result "1-0"]
[WhiteElo "2524"]
[BlackElo "2190"]
[TimeControl "180+1"]
[EndTime "10:30:07 PST"]
[Termination "Susal_De_Silva won by resignation"]

1. e4 {[%clk 0:03:00.9]} 1... c6 {[%clk 0:02:59.9]} 2. d4 {[%clk 0:03:00.6]}
2... d5 {[%clk 0:03:00.4]} 3. Nc3 {[%clk 0:03:01.5]} 3... dxe4 {[%clk
0:03:00.4]} 4. Nxe4 {[%clk 0:03:02.4]} 4... Bf5 {[%clk 0:03:00.8]} 5. Ng3 {[%clk
0:03:02.7]} 5... Bg6 {[%clk 0:03:01.3]} 6. h4 {[%clk 0:03:03.4]} 6... h6 {[%clk
0:03:01.4]} 7. Nf3 {[%clk 0:03:03.7]} 7... e6 {[%clk 0:03:01.7]} 8. h5 {[%clk
0:03:04.4]} 8... Bh7 {[%clk 0:03:01.4]} 9. Bd3 {[%clk 0:03:05.3]} 9... Bxd3
{[%clk 0:03:01.2]} 10. Qxd3 {[%clk 0:03:06.2]} 10... Nf6 {[%clk 0:03:01.2]} 11.
Bd2 {[%clk 0:03:06.6]} 11... Be7 {[%clk 0:03:00.7]} 12. O-O-O {[%clk 0:03:06.8]}
12... c5 {[%clk 0:02:55.6]} 13. Kb1 {[%clk 0:03:06.1]} 13... O-O {[%clk
0:02:52.4]} 14. Ne4 {[%clk 0:03:05.5]} 14... cxd4 {[%clk 0:02:42.9]} 15. Nxd4
{[%clk 0:03:02.7]} 15... Qb6 {[%clk 0:02:39.6]} 16. Bc3 {[%clk 0:02:56.2]} 16...
Nxe4 {[%clk 0:02:18]} 17. Qxe4 {[%clk 0:02:57.1]} 17... Bf6 {[%clk 0:02:17.5]}
18. Rh3 {[%clk 0:02:50.2]} 18... Na6 {[%clk 0:02:08.7]} 19. Rg3 {[%clk
0:02:40.6]} 19... Nc5 {[%clk 0:02:07.7]} 20. Qf3 {[%clk 0:02:40.5]} 20... Na4
{[%clk 0:02:06.6]} 21. Qxf6 {[%clk 0:02:31.7]} 21... Nxc3+ {[%clk 0:02:04.9]}
22. Ka1 {[%clk 0:02:32]} 22... g5 {[%clk 0:00:51.3]} 23. hxg6 {[%clk 0:02:24.6]}
23... Qxb2+ {[%clk 0:00:49.9]} 24. Kxb2 {[%clk 0:02:21.5]} 24... Nxd1+ {[%clk
0:00:50.8]} 25. Kc1 {[%clk 0:02:21.8]} 1-0

[Event "*** Titled Tuesday Blitz"]
[Site "Chess.com"]
[Date "2020.11.24"]
[Round "2"]
[White "vlad10898"]
[Black "lider34"]
[Result "1-0"]
[WhiteElo "2689"]
[BlackElo "2435"]
[TimeControl "180+1"]
[EndTime "10:30:08 PST"]
[Termination "vlad10898 won by resignation"]

1. d4 {[%clk 0:02:59.4]} 1... Nf6 {[%clk 0:02:58.9]} 2. Nf3 {[%clk 0:02:59.7]}
2... g6 {[%clk 0:02:58.1]} 3. g3 {[%clk 0:02:59.2]} 3... Bg7 {[%clk 0:02:58.4]}
4. Bg2 {[%clk 0:02:59.9]} 4... O-O {[%clk 0:02:58.6]} 5. O-O {[%clk 0:03:00.5]}
5... d6 {[%clk 0:02:58.7]} 6. b3 {[%clk 0:03:00.6]} 6... e5 {[%clk 0:02:57.3]}
7. dxe5 {[%clk 0:03:00.4]} 7... Ng4 {[%clk 0:02:57.2]} 8. Bb2 {[%clk 0:02:58.7]}
8... Re8 {[%clk 0:02:56.1]} 9. c4 {[%clk 0:02:57.4]} 9... Nd7 {[%clk 0:02:44.5]}
10. Nc3 {[%clk 0:02:54.8]} 10... dxe5 {[%clk 0:02:43.7]} 11. h3 {[%clk
0:02:23.1]} 11... Nh6 {[%clk 0:02:42.6]} 12. e4 {[%clk 0:02:19.7]} 12... f6
{[%clk 0:02:41.5]} 13. b4 {[%clk 0:02:18.1]} 13... c6 {[%clk 0:02:40.2]} 14. c5
{[%clk 0:02:17.8]} 14... Nf7 {[%clk 0:02:35.1]} 15. Nd2 {[%clk 0:02:17.7]} 15...
Nf8 {[%clk 0:02:34.1]} 16. Nc4 {[%clk 0:02:13.5]} 16... Be6 {[%clk 0:02:23.5]}
17. Qe2 {[%clk 0:02:00.9]} 17... Qd4 {[%clk 0:02:13.7]} 18. Nd5 {[%clk
0:01:54.1]} 18... Qxc4 {[%clk 0:01:38.6]} 19. Qxc4 {[%clk 0:01:53.7]} 19... cxd5
{[%clk 0:01:38.1]} 20. exd5 {[%clk 0:01:54.2]} 20... Bd7 {[%clk 0:01:37.3]} 21.
c6 {[%clk 0:01:50.8]} 21... bxc6 {[%clk 0:01:34.4]} 22. dxc6 {[%clk 0:01:51.7]}
22... Be6 {[%clk 0:01:34.9]} 23. Qa6 {[%clk 0:01:41.8]} 1-0

[Event "*** Titled Tuesday Blitz"]
[Site "Chess.com"]
[Date "2020.11.24"]
[Round "2"]
[White "Gudmundur_Kjartansson"]
[Black "Shankland"]
[Result "0-1"]
[WhiteElo "2548"]
[BlackElo "2905"]
[TimeControl "180+1"]
[EndTime "10:30:18 PST"]
[Termination "Shankland won by resignation"]

1. d4 {[%clk 0:03:00.9]} 1... d5 {[%clk 0:02:59.2]} 2. c4 {[%clk 0:03:01.4]}
2... c6 {[%clk 0:02:59.6]} 3. Nc3 {[%clk 0:03:01.9]} 3... Nf6 {[%clk 0:02:59.5]}
4. e3 {[%clk 0:03:02.2]} 4... e6 {[%clk 0:02:59.4]} 5. Nf3 {[%clk 0:03:02.5]}
5... Nbd7 {[%clk 0:02:59.2]} 6. Qc2 {[%clk 0:03:02.9]} 6... Bd6 {[%clk
0:02:59.3]} 7. Bd3 {[%clk 0:03:03.1]} 7... O-O {[%clk 0:02:59]} 8. O-O {[%clk
0:03:02.9]} 8... dxc4 {[%clk 0:02:59.4]} 9. Bxc4 {[%clk 0:03:03.5]} 9... b5
{[%clk 0:03:00]} 10. Be2 {[%clk 0:03:04.1]} 10... Bb7 {[%clk 0:03:00.3]} 11. e4
{[%clk 0:02:59.3]} 11... e5 {[%clk 0:03:00.3]} 12. dxe5 {[%clk 0:02:54.4]} 12...
Nxe5 {[%clk 0:03:00.4]} 13. Nh4 {[%clk 0:02:54.1]} 13... g6 {[%clk 0:02:58.3]}
14. Bh6 {[%clk 0:02:52.9]} 14... Nfg4 {[%clk 0:02:53]} 15. Bxf8 {[%clk
0:01:50.6]} 15... Qxh4 {[%clk 0:02:51.2]} 16. h3 {[%clk 0:01:48.4]} 16... Rxf8
{[%clk 0:02:48.1]} 17. Rad1 {[%clk 0:01:42.8]} 17... Bb8 {[%clk 0:02:31.6]} 18.
Qd2 {[%clk 0:01:04.7]} 18... a6 {[%clk 0:02:04.8]} 19. f4 {[%clk 0:00:54]} 19...
Ba7+ {[%clk 0:02:04.5]} 20. Kh1 {[%clk 0:00:53.7]} 20... Qg3 {[%clk 0:02:01]}
21. Bxg4 {[%clk 0:00:53.2]} 21... Nxg4 {[%clk 0:02:00.7]} 0-1

[Event "*** Titled Tuesday Blitz"]
[Site "Chess.com"]
[Date "2020.11.24"]
[Round "2"]
[White "AsaHoffmann"]
[Black "BillCoe"]
[Result "1-0"]
[WhiteElo "2382"]
[BlackElo "2059"]
[TimeControl "180+1"]
[EndTime "10:30:32 PST"]
[Termination "AsaHoffmann won by resignation"]

1. d4 {[%clk 0:02:58.1]} 1... e6 {[%clk 0:02:59.4]} 2. e4 {[%clk 0:02:57.3]}
2... d5 {[%clk 0:02:57.2]} 3. e5 {[%clk 0:02:57]} 3... c5 {[%clk 0:02:57.1]} 4.
Nf3 {[%clk 0:02:56.5]} 4... Nc6 {[%clk 0:02:57]} 5. Bd3 {[%clk 0:02:56.1]} 5...
cxd4 {[%clk 0:02:54.5]} 6. O-O {[%clk 0:02:55.2]} 6... Qb6 {[%clk 0:02:53.1]} 7.
a3 {[%clk 0:02:52.6]} 7... Bd7 {[%clk 0:02:53.4]} 8. b4 {[%clk 0:02:51.8]} 8...
a5 {[%clk 0:02:53.3]} 9. b5 {[%clk 0:02:51.2]} 9... Na7 {[%clk 0:02:45.2]} 10.
a4 {[%clk 0:02:50.6]} 10... Bb4 {[%clk 0:02:44.6]} 11. Bb2 {[%clk 0:02:49]}
11... Bc5 {[%clk 0:02:27.2]} 12. Nbd2 {[%clk 0:02:47.7]} 12... Ne7 {[%clk
0:02:24.2]} 13. Nb3 {[%clk 0:02:46.7]} 13... Ng6 {[%clk 0:02:20.4]} 14. Re1
{[%clk 0:02:40.7]} 14... O-O {[%clk 0:02:19.2]} 15. Nxc5 {[%clk 0:02:38.7]}
15... Qxc5 {[%clk 0:02:20]} 16. Bxd4 {[%clk 0:02:37.8]} 16... Qc8 {[%clk
0:02:16.2]} 17. Qd2 {[%clk 0:02:36.1]} 17... Qd8 {[%clk 0:02:11]} 18. h4 {[%clk
0:02:31.5]} 18... b6 {[%clk 0:02:08.3]} 19. h5 {[%clk 0:02:28.7]} 19... Ne7
{[%clk 0:02:08.7]} 20. h6 {[%clk 0:02:28.4]} 20... g6 {[%clk 0:02:08.2]} 21. Qg5
{[%clk 0:02:23.5]} 21... Nf5 {[%clk 0:02:05.5]} 22. Qxd8 {[%clk 0:02:20.9]}
22... Rfxd8 {[%clk 0:01:59.2]} 23. Bxf5 {[%clk 0:02:20.5]} 23... gxf5 {[%clk
0:01:56.9]} 24. Bxb6 {[%clk 0:02:20.1]} 24... Rdc8 {[%clk 0:01:53.6]} 25. Nd4
{[%clk 0:02:15]} 25... Rc4 {[%clk 0:01:50.7]} 26. Red1 {[%clk 0:02:14.4]} 26...
Nc8 {[%clk 0:01:51]} 27. Bd8 {[%clk 0:02:09.4]} 27... Kf8 {[%clk 0:01:48]} 28.
Ra3 {[%clk 0:01:54.5]} 28... Ke8 {[%clk 0:01:47.5]} 29. Bf6 {[%clk 0:01:53]}
29... Nb6 {[%clk 0:01:46.3]} 30. Rg3 {[%clk 0:01:49.2]} 30... Bc8 {[%clk
0:01:39.7]} 31. Rg7 {[%clk 0:01:41.2]} 31... Nd7 {[%clk 0:01:28.8]} 32. Rg8+
{[%clk 0:01:33.8]} 32... Nf8 {[%clk 0:01:26.1]} 33. Bg7 {[%clk 0:01:33.6]} 1-0

[Event "*** Titled Tuesday Blitz"]
[Site "Chess.com"]
[Date "2020.11.24"]
[Round "2"]
[White "Aradej"]
[Black "cukin84"]
[Result "1-0"]
[WhiteElo "2426"]
[BlackElo "2158"]
[TimeControl "180+1"]
[EndTime "10:30:35 PST"]
[Termination "Aradej won by resignation"]

1. d4 {[%clk 0:03:00.9]} 1... f5 {[%clk 0:02:59.4]} 2. Bf4 {[%clk 0:02:59.8]}
2... Nf6 {[%clk 0:02:59.6]} 3. e3 {[%clk 0:03:00.2]} 3... g6 {[%clk 0:02:59.7]}
4. h4 {[%clk 0:03:00]} 4... h5 {[%clk 0:02:58.9]} 5. Nf3 {[%clk 0:02:58.1]} 5...
d6 {[%clk 0:02:58.4]} 6. Bc4 {[%clk 0:02:56.5]} 6... Bg7 {[%clk 0:02:56.6]} 7.
Nbd2 {[%clk 0:02:55.4]} 7... e6 {[%clk 0:02:56]} 8. Ng5 {[%clk 0:02:54.3]} 8...
Qe7 {[%clk 0:02:55.3]} 9. Bb3 {[%clk 0:02:53.7]} 9... Nc6 {[%clk 0:02:53.4]} 10.
Qe2 {[%clk 0:02:52.4]} 10... Bd7 {[%clk 0:02:50.8]} 11. a3 {[%clk 0:02:51.1]}
11... O-O-O {[%clk 0:02:45]} 12. O-O-O {[%clk 0:02:50.5]} 12... Nd5 {[%clk
0:02:40.4]} 13. Bh2 {[%clk 0:02:49]} 13... f4 {[%clk 0:02:35.5]} 14. Bxd5 {[%clk
0:02:44.6]} 14... exd5 {[%clk 0:02:35.1]} 15. Bxf4 {[%clk 0:02:44.4]} 15... Bf5
{[%clk 0:02:29.7]} 16. Qb5 {[%clk 0:02:39.3]} 16... Rhe8 {[%clk 0:02:09.8]} 17.
Qxd5 {[%clk 0:02:36.6]} 17... Kb8 {[%clk 0:02:01]} 18. g3 {[%clk 0:02:28.4]}
18... Qd7 {[%clk 0:01:50.5]} 19. Kb1 {[%clk 0:02:25.9]} 19... Ne7 {[%clk
0:01:50]} 20. Qb3 {[%clk 0:02:20.9]} 20... d5 {[%clk 0:01:48.3]} 21. Ndf3 {[%clk
0:02:18.4]} 21... Nc6 {[%clk 0:01:46.9]} 22. Rc1 {[%clk 0:02:16]} 22... Bf6
{[%clk 0:01:41.5]} 23. Ka1 {[%clk 0:02:15.2]} 23... Bxg5 {[%clk 0:01:41.2]} 24.
Bxg5 {[%clk 0:02:11.4]} 24... Rc8 {[%clk 0:01:41]} 25. Rhe1 {[%clk 0:02:05.5]}
25... Be4 {[%clk 0:01:40]} 26. Nd2 {[%clk 0:02:04.7]} 26... Qf5 {[%clk
0:01:37.2]} 27. Bf4 {[%clk 0:02:02.6]} 27... Re6 {[%clk 0:01:28.5]} 28. c4
{[%clk 0:02:01.8]} 28... Rce8 {[%clk 0:01:24.2]} 29. Nxe4 {[%clk 0:01:56.6]}
29... Qxe4 {[%clk 0:01:22.7]} 30. cxd5 {[%clk 0:01:56.1]} 30... Na5 {[%clk
0:01:17.1]} 31. Qc3 {[%clk 0:01:55.7]} 31... Qxd5 {[%clk 0:01:07.9]} 32. Qxc7+
{[%clk 0:01:54.7]} 32... Ka8 {[%clk 0:01:08.2]} 33. Qc8+ {[%clk 0:01:54.7]} 1-0

[Event "*** Titled Tuesday Blitz"]
[Site "Chess.com"]
[Date "2020.11.24"]
[Round "2"]
[White "WonderChampion"]
[Black "Smile2005"]
[Result "1-0"]
[WhiteElo "2050"]
[BlackElo "2360"]
[TimeControl "180+1"]
[EndTime "10:30:45 PST"]
[Termination "WonderChampion won by resignation"]

1. d4 {[%clk 0:03:00.9]} 1... Nf6 {[%clk 0:02:59.6]} 2. Bg5 {[%clk 0:02:57.2]}
2... g6 {[%clk 0:03:00.5]} 3. Nf3 {[%clk 0:02:52.1]} 3... Bg7 {[%clk 0:03:00.9]}
4. e3 {[%clk 0:02:51.1]} 4... O-O {[%clk 0:02:58.8]} 5. Bd3 {[%clk 0:02:49.2]}
5... d5 {[%clk 0:02:52.2]} 6. c4 {[%clk 0:02:45.8]} 6... c5 {[%clk 0:02:50.6]}
7. cxd5 {[%clk 0:02:39.5]} 7... cxd4 {[%clk 0:02:48.4]} 8. Nxd4 {[%clk
0:02:36.2]} 8... Qxd5 {[%clk 0:02:48.5]} 9. Nf3 {[%clk 0:02:22]} 9... Bg4 {[%clk
0:02:46.6]} 10. Bxf6 {[%clk 0:02:00.3]} 10... Bxf6 {[%clk 0:02:45.8]} 11. O-O
{[%clk 0:01:52.6]} 11... Bxf3 {[%clk 0:02:45.4]} 12. gxf3 {[%clk 0:01:43.7]}
12... Bxb2 {[%clk 0:02:44.2]} 13. Be4 {[%clk 0:01:30.5]} 13... Qxd1 {[%clk
0:02:42.6]} 14. Rxd1 {[%clk 0:01:30.3]} 14... Nc6 {[%clk 0:02:42.8]} 15. Nd2
{[%clk 0:01:28.6]} 15... Bxa1 {[%clk 0:02:41.7]} 16. Rxa1 {[%clk 0:01:29.5]}
16... Rfd8 {[%clk 0:02:39.3]} 17. Bxc6 {[%clk 0:01:28.7]} 17... bxc6 {[%clk
0:02:38.7]} 18. Nc4 {[%clk 0:01:26.6]} 18... Rab8 {[%clk 0:02:38.4]} 19. Ne5
{[%clk 0:01:25.5]} 19... Rd6 {[%clk 0:02:37.1]} 20. Rc1 {[%clk 0:01:22.4]} 20...
f6 {[%clk 0:02:33.1]} 21. Nxc6 {[%clk 0:01:20.9]} 21... Rb7 {[%clk 0:02:30.9]}
22. Nd4 {[%clk 0:01:17.6]} 22... Rb2 {[%clk 0:02:30]} 23. Rc8+ {[%clk
0:01:14.3]} 23... Kf7 {[%clk 0:02:29.4]} 24. Rc7 {[%clk 0:01:15.2]} 24... Rxa2
{[%clk 0:02:27.5]} 25. Nc6 {[%clk 0:01:14.5]} 25... Re6 {[%clk 0:02:24.9]} 26.
Nd8+ {[%clk 0:01:13.9]} 26... Ke8 {[%clk 0:02:08.9]} 27. Nxe6 {[%clk 0:01:13.3]}
27... a5 {[%clk 0:02:09.3]} 28. Ra7 {[%clk 0:01:11.3]} 28... a4 {[%clk
0:02:09.1]} 29. Nd4 {[%clk 0:01:10.9]} 29... e5 {[%clk 0:02:05.9]} 30. Nb5
{[%clk 0:01:08.5]} 30... h5 {[%clk 0:02:05.8]} 31. Kg2 {[%clk 0:01:04.1]} 31...
g5 {[%clk 0:02:05.7]} 32. h3 {[%clk 0:01:03]} 32... f5 {[%clk 0:02:04.6]} 33.
Nd6+ {[%clk 0:01:01.7]} 33... Kd8 {[%clk 0:02:04.6]} 34. Nxf5 {[%clk 0:01:00.6]}
1-0